Cogmind - Beta 14 --- EXPLORER MODE // 2024.10.09 @ 23:04:02 Player: Comet The Floof Dergy Result: Self-destructed Performance ------------- Evolutions (3) 1500 Regions Visited (5) 1000 Robots Destroyed (38) 190 Value Destroyed (922) 922 Prototype IDs (0) 0 Alien Tech Used (0) 0 Bonus (0) 0 TOTAL SCORE: 3612 Bonus ------- None Cogmind --------- Core Integrity 458/700 Matter 110/300 Energy 100/100 System Corruption 6% Temperature Cool (0) Movement Core (50) Location -7/Waste Parts ------- > --- POWER (3) -------- (None) > --- PROPULSION (4) --- (None) > --- UTILITY (4) ------ (None) > --- WEAPON (3) ------- (None) > --- INVENTORY (5) ---- Deuterium Engine Deuterium Engine Improved Titanium Leg Transmission Jammer Hacking Suite Peak State ------------ > --- POWER ------------ Deuterium Engine Deuterium Engine Deuterium Engine > --- PROPULSION ------- Wheel Compact Wheel Armored Huge Wheel > --- UTILITY ---------- Heat Sink Huge Storage Unit Improved Sensor Array Medium Armor Plating > --- WEAPON ----------- Heavy Particle Cannon Plasma Cannon Minigun > --- INVENTORY -------- Deuterium Engine Deuterium Engine Deuterium Engine Deuterium Engine Light Deuterium Engine Light Deuterium Engine Improved Titanium Leg Improved Titanium Leg Improved Titanium Leg Improved Titanium Leg Advanced Visual Processing Unit Improved Signal Interpreter Targeting Computer Transmission Jammer Advanced ECM Suite Advanced ECM Suite Improved Light Armor Plating Medium Reactive Plating Hacking Suite System Shield Recalibrator Minigun Minigun Gauss Rifle Advanced Assault Cannon [Rating: 44] Favorites ----------- Power Deuterium Engine Engine Deuterium Engine Propulsion Wheel Treads Light Treads Leg Aluminum Leg Wheel Wheel Utility Huge Storage Unit Device Heat Sink Storage Huge Storage Unit Protection Medium Armor Plating Weapon Minigun Energy Gun Medium Laser Energy Cannon Heavy Particle Cannon Ballistic Gun Minigun Build | -11 -10 -9 -8 -7 -7 ------- Run | Yrd Mat Mat Mat Fac Was Slots Evolved 7 | . 1 2 2 2 . Power 2 | . 1 . . 1 . Propulsion 2 | . . 1 . 1 . Utility 2 | . . 1 1 . . Weapon 1 | . . . 1 . . Parts Attached 37 | 8 3 14 3 9 . Power 12 | 1 1 4 . 6 . Engine 12 | 1 1 4 . 6 . Core . | . . . . . . Reactor . | . . . . . . Propulsion 9 | 2 . 5 1 1 . Treads 2 | 2 . . . . . Leg 2 | . . 2 . . . Wheel 5 | . . 3 1 1 . Hover . | . . . . . . Flight . | . . . . . . Utility 9 | 3 2 2 1 1 . Device 2 | . . 1 1 . . Storage 3 | 1 1 . . 1 . Processor . | . . . . . . Hackware . | . . . . . . Protection 4 | 2 1 1 . . . Artifact . | . . . . . . Weapon 7 | 2 . 3 1 1 . Energy Gun 2 | 2 . . . . . Energy Cannon 2 | . . . 1 1 . Ballistic Gun 3 | . . 3 . . . Ballistic Cannon . | . . . . . . Launcher . | . . . . . . Special Weapon . | . . . . . . Impact Weapon . | . . . . . . Slashing Weapon . | . . . . . . Piercing Weapon . | . . . . . . Special Melee Weapon . | . . . . . . Unidentified Prototypes . | . . . . . . Parts Lost 10 | . . 3 . . 7 Power 3 | . . 1 . . 2 Propulsion 3 | . . 1 . . 2 Utility 2 | . . 1 . . 1 Weapon 2 | . . . . . 2 Highest Loss Streak 7 | . . 1 . . 7 To Critical Strikes 1 | . . . . . 1 Average Slot Usage (%) 87 | . 99 84 82 90 58 Engine 19 | . 25 18 16 21 13 Treads 5 | . 25 4 . . . Wheel 15 | . . 20 16 19 15 Device 6 | . . 2 10 14 9 Storage 8 | . 11 10 8 7 5 Protection 8 | . 12 7 8 7 4 Energy Gun 6 | . 25 7 . . . Energy Cannon 3 | . . . 5 10 8 Ballistic Gun 10 | . . 12 16 10 4 Peak Build Rating 44 | 7 10 22 37 44 44 Average Rating 22 | 5 9 16 30 40 28 On Entrance 20 | . 7 10 22 37 44 Naked Turns 8 | . . . . . 8 Heaviest Build 132 | 20 99 112 119 132 132 Greatest Support 54 | 40 40 40 38 54 54 Greatest Overweight (x) 5 | 1 2 5 5 2 2 Average Overweight (x) 2 | . . 3 3 2 2 Largest Inventory Capacity 25 | 10 25 25 25 25 25 Average Capacity 22 | 7 19 25 25 25 19 Most Carried 25 | 8 12 25 25 25 25 Average Carried 18 | 4 9 18 24 24 19 Final Capacity 25 | 10 25 25 25 25 5 Final Carried 25 | 8 12 25 25 25 5 Class Distribution -------------------- 63% | Hacker-Mutant 27% | Hacker-Tank 9% | Scavenger-Tank Dominant Class ---------------- Hacker-Mutant | -10/Materials Hacker-Mutant | -9/Materials Hacker-Tank | -8/Materials Hacker-Tank | -7/Factory Hacker-Mutant | -7/Waste Resources | -11 -10 -9 -8 -7 -7 ----------- Run | Yrd Mat Mat Mat Fac Was Matter Collected 941 | 280 30 313 240 78 . Remotely . | . . . . . . Salvage Created 1576 | 58 73 731 371 . 343 Parts 95 | 8 10 49 26 . 2 Haulers Intercepted . | . . . . . . Recyclers Shooed . | . . . . . . Parts Field Recycled . | . . . . . . Retrieved Matter . | . . . . . . Parts Self-Destructed . | . . . . . . Prevented . | . . . . . . Kills | -11 -10 -9 -8 -7 -7 ------- Run | Yrd Mat Mat Mat Fac Was Combat Hostiles Destroyed 19 | . . 12 6 . 1 Guns 15 | . . 12 3 . . Cannons 3 | . . . 3 . . Classes Destroyed 10 | 2 1 4 2 . 1 Worker 4 | 2 . 1 1 . . Builder 2 | . . 2 . . . Tunneler 2 | 1 1 . . . . Watcher 11 | . 2 4 5 . . Swarmer 3 | . . . 3 . . Grunt 9 | . . 9 . . . Brawler 1 | . . 1 . . . Sentry 4 | . . 2 2 . . Hunter 1 | . . . 1 . . Compactor 1 | . . . . . 1 Best Kill Streak 4 | 2 1 4 4 . 1 Combat Bots Only 2 | . . 2 2 . 1 Max Kills in Single Turn 1 | 1 1 1 1 . 1 Gunslinging . | . . . . . . Exploded . | . . . . . . Melee . | . . . . . . Uniques/NPCs Destroyed . | . . . . . . Combat | -11 -10 -9 -8 -7 -7 -------- Run | Yrd Mat Mat Mat Fac Was Hostile Shots Fired 95 | . . 61 22 . 12 Missed 21 | . . 18 3 . . Damage Taken 1105 | . . 550 149 . 406 Core 483 | . . 221 20 . 242 Absorbed by Shields . | . . . . . . Ignored by Resistances 525 | . . 246 95 . 184 Core Remaining (%) 85 | 100 100 44 96 . . Volleys Fired 96 | 6 7 50 22 1 10 Largest 3 | 2 2 2 3 3 3 Hottest 180 | 90 90 90 125 125 180 Shots Fired 214 | 12 14 100 62 3 23 Gun 176 | 12 14 100 44 2 4 Cannon 38 | . . . 18 1 19 Launcher . | . . . . . . Special . | . . . . . . Kinetic 94 | . . 44 44 2 4 Thermal 86 | 6 7 35 18 1 19 Explosive . | . . . . . . Electromagnetic 34 | 6 7 21 . . . Robot Hit Streak 18 | 9 3 18 13 . 12 Robot Miss Streak 3 | 1 3 1 2 . 1 Penetration Max . | . . . . . . Secondary Targets 3 | . . 3 . . . Max Gunslinging Chain 1 | . . 1 . . . Shots Hit Robots 153 | 9 7 81 36 . 20 Core Hits 59 | 3 3 33 18 . 2 Critical Kills 2 | . . 1 . . 1 Critical Parts Destroyed 1 | . . 1 . . . Critical Strikes 7 | 1 . 5 . . 1 Burn 4 | 1 . 3 . . . Meltdown 1 | . . . . . 1 Destroy 2 | . . 2 . . . Melee Attacks . | . . . . . . Impact . | . . . . . . Slashing . | . . . . . . Piercing . | . . . . . . Sneak Attacks . | . . . . . . Combat Hostiles . | . . . . . . Follow-up Attacks . | . . . . . . Damage Inflicted 2704 | 123 63 1241 780 . 497 Guns 1919 | 123 63 1158 505 . 70 Cannons 702 | . . . 275 . 427 Explosions 83 | . . 83 . . . Melee . | . . . . . . Ramming . | . . . . . . Kinetic 1109 | . . 534 505 . 70 Thermal 1248 | 63 50 433 275 . 427 Explosive . | . . . . . . Electromagnetic 347 | 60 13 274 . . . Impact . | . . . . . . Slashing . | . . . . . . Piercing . | . . . . . . Highest Corruption 6 | . . . . 1 6 Average Corruption 1 | . . . . 1 4 Corruption Purged . | . . . . . . Corruption Blocked . | . . . . . . Effects 4 | . . . . 1 3 Matter Fused 1 | . . . . . 1 Heat Flow Errors 1 | . . . . . 1 Energy Discharges 2 | . . . . 1 1 Overload Shots . | . . . . . . Overflow Damage 13 | . . 13 . . . Projectiles . | . . . . . . Explosions 13 | . . 13 . . . Melee . | . . . . . . Knockbacks . | . . . . . . Impact . | . . . . . . Kinetic . | . . . . . . Secondary . | . . . . . . Self-Inflicted Damage 30 | . . 30 . . . Shots 1 | . . 1 . . . Rammed . | . . . . . . Targets Rammed . | . . . . . . Kicked . | . . . . . . Crushed . | . . . . . . Highest Temperature 814 | 60 108 615 233 72 814 Average Temperature 167 | 26 43 171 95 43 459 Received Heat Transfer 348 | . . 330 18 . . Effects 50 | . . 23 . . 27 Shutdowns 16 | . . 7 . . 9 Energy Bleed 2 | . . 2 . . . Interference 2 | . . . . . 2 Matter Decay 6 | . . 1 . . 5 Short Circuit 5 | . . 3 . . 2 Damage (minor) 3 | . . 1 . . 2 Damage (major) 13 | . . 7 . . 6 Damage (core) 3 | . . 2 . . 1 Siege Activations . | . . . . . . Robots Corrupted . | . . . . . . Combat Hostiles . | . . . . . . Parts Fried 1 | . . 1 . . . Impact Corruptions . | . . . . . . Robots Melted 1 | . . . . . 1 Combat Hostiles 1 | . . . . . 1 Parts Melted 6 | . . 3 . . 3 Heat Transferred 2918 | 259 148 1358 407 . 746 Parts Sabotaged . | . . . . . . Parts Stolen . | . . . . . . Parts Stripped . | . . . . . . Power Chain Reactions 1 | . . 1 . . . Alert | -11 -10 -9 -8 -7 -7 ------- Run | Yrd Mat Mat Mat Fac Was Peak Influence 278 | 15 61 278 220 16 . Initial 36 | . 7 18 36 16 . Average 64 | 3 24 123 83 13 . Maximum Alert Level 1 | . . 1 1 . . Low Security (%) 92 | 100 100 80 94 100 100 Level 1 7 | . . 19 5 . . Level 2 . | . . . . . . Level 3 . | . . . . . . Level 4 . | . . . . . . Level 5 . | . . . . . . High Security . | . . . . . . Max Security . | . . . . . . Squads Dispatched 1 | . . 1 . . . Investigation . | . . . . . . Extermination . | . . . . . . Reinforcement 1 | . . 1 . . . Assault . | . . . . . . Garrison . | . . . . . . Intercept . | . . . . . . Searches Triggered . | . . . . . . Construction Impeded . | . . . . . . Haulers Reinforced . | . . . . . . Active Scanning Responses . | . . . . . . Cargo Convoy Interrupts . | . . . . . . Stealth | -11 -10 -9 -8 -7 -7 --------- Run | Yrd Mat Mat Mat Fac Was Distress Signals 7 | . . 4 3 . . Communications Jammed . | . . . . . . Distress Signals . | . . . . . . Times Spotted 38 | . 4 20 11 . 3 Peak Tracking Total 4 | . 2 4 4 . 2 Tactical Retreats . | . . . . . . Traps | -11 -10 -9 -8 -7 -7 ------- Run | Yrd Mat Mat Mat Fac Was Traps Triggered 2 | . . . . 2 . Indirectly . | . . . . . . Trap Hack Attempts . | . . . . . . Triggered . | . . . . . . Disarmed 6 | . 6 . . . . Reprogrammed . | . . . . . . Reused . | . . . . . . Traps Extracted . | . . . . . . Installed . | . . . . . . Triggered . | . . . . . . Machines | -11 -10 -9 -8 -7 -7 ---------- Run | Yrd Mat Mat Mat Fac Was Machines Disabled . | . . . . . . Max in Single Turn . | . . . . . . Machines Repaired . | . . . . . . Machines Dismantled . | . . . . . . Machines Sabotaged . | . . . . . . Overloaded Fab Kills . | . . . . . . Hacking | -11 -10 -9 -8 -7 -7 --------- Run | Yrd Mat Mat Mat Fac Was Machines Accessed 6 | . 1 3 1 1 . Terminals 6 | . 1 3 1 1 . Fabricators . | . . . . . . Repair Stations . | . . . . . . Recycling Units . | . . . . . . Scanalyzers . | . . . . . . Garrison Access . | . . . . . . Total Hacks 13 | . 3 6 2 2 . Successful 8 | . 2 3 1 2 . Failed 5 | . 1 3 1 . . Catastrophic 1 | . . 1 . . . Database Lockouts . | . . . . . . Manual . | . . . . . . Terminals 13 | . 3 6 2 2 . Fabricators . | . . . . . . Repair Stations . | . . . . . . Recycling Units . | . . . . . . Scanalyzers . | . . . . . . Garrison Access . | . . . . . . Terminal Hacks 8 | . 2 3 1 2 . Record 4 | . . 1 1 2 . Alert Level 1 | . . 1 . . . Disarm Traps 1 | . 1 . . . . Investigation Status 1 | . . 1 . . . Registered Components 1 | . 1 . . . . Fabricator Hacks . | . . . . . . Repair Station Hacks . | . . . . . . Recycling Unit Hacks . | . . . . . . Scanalyzer . | . . . . . . Garrison Access Hacks . | . . . . . . Unauthorized Hacks . | . . . . . . Terminals . | . . . . . . Fabricators . | . . . . . . Repair Stations . | . . . . . . Recycling Units . | . . . . . . Scanalyzers . | . . . . . . Garrison Access . | . . . . . . Data Cores Recovered . | . . . . . . Used . | . . . . . . Hacking Detections 4 | . . 2 1 1 . Full Trace Events . | . . . . . . Feedback Events . | . . . . . . Feedback Blocked . | . . . . . . Robot Schematics Acquired . | . . . . . . Robots Built . | . . . . . . Authchips . | . . . . . . Time . | . . . . . . Total Robot Build Rating . | . . . . . . Part Schematics Acquired . | . . . . . . Parts Built . | . . . . . . Authchips . | . . . . . . Time . | . . . . . . Total Part Build Rating . | . . . . . . Parts Repaired . | . . . . . . Time . | . . . . . . Parts Recycled . | . . . . . . Recycled Matter . | . . . . . . Retrieved Matter . | . . . . . . Retrieved Components . | . . . . . . Parts Scanalyzed . | . . . . . . Part Schematics Acquired . | . . . . . . Parts Damaged . | . . . . . . Bothacking | -11 -10 -9 -8 -7 -7 ------------ Run | Yrd Mat Mat Mat Fac Was Used RIF Installer . | . . . . . . Robots Hacked . | . . . . . . Non-combat . | . . . . . . Combat . | . . . . . . Robot Hacks Applied . | . . . . . . Relay Couplers Released . | . . . . . . Fabnet Peak Effective % . | . . . . . . Robots Rewired . | . . . . . . Allies Hacked . | . . . . . . Hacks Repelled . | . . . . . . Allies | -11 -10 -9 -8 -7 -7 -------- Run | Yrd Mat Mat Mat Fac Was Total Allies 1 | . . . . . 1 Largest Group 1 | . . . . . 1 Highest-Rated Group 31 | . . . . . 31 Highest-Rated Ally 31 | . . . . . 31 Total Orders . | . . . . . . Ally Attacks 13 | . . . . . 13 Total Damage 188 | . . . . . 188 Kills . | . . . . . . Allies Corrupted . | . . . . . . Allies Melted . | . . . . . . Intel | -11 -10 -9 -8 -7 -7 ------- Run | Yrd Mat Mat Mat Fac Was Robot Analysis Total . | . . . . . . Derelict Logs Recovered . | . . . . . . Drone Launches . | . . . . . . Drone Recoveries . | . . . . . . Exploration | -11 -10 -9 -8 -7 -7 ------------- Run | Yrd Mat Mat Mat Fac Was Turns Passed 2375 | 165 372 726 562 483 67 Spaces Moved 1274 | 82 139 352 334 363 4 Core 11 | 11 . . . . . Treads 241 | 71 139 31 . . . Legs . | . . . . . . Wheels 1022 | . . 321 334 363 4 Hover . | . . . . . . Flight . | . . . . . . Fastest Speed 50 | 50 160 125 135 120 123 Average Speed 149 | 148 239 149 141 122 123 Slowest Speed 320 | 160 320 320 155 123 123 Overloaded Moves . | . . . . . . Propulsion Burnouts . | . . . . . . Robots Hopped . | . . . . . . Cave-ins Triggered . | . . . . . . Exploration Rate (%) 18 | 5 26 22 38 7 11 Regions Visited 5 Branch Regions . Pre-discovered Areas . | . . . . . . Known Exits Taken 4 | 1 1 1 1 . . Unknown Exits Taken . | . . . . . . Scrap Searched . | . . . . . . Spaces Dug . | . . . . . . Terrain Destroyed 7 | . . 2 5 . . Melee . | . . . . . . Projectile 5 | . . . 5 . . AOE 2 | . . 2 . . . Terrain Rammed . | . . . . . . Walls Destroyed . | . . . . . . Machines Disabled . | . . . . . . Actions | -11 -10 -9 -8 -7 -7 --------- Run | Yrd Mat Mat Mat Fac Was Total 1589 | 115 166 458 390 414 46 Wait 58 | 1 4 6 8 7 32 Move 1270 | 81 138 351 333 363 4 Hop . | . . . . . . Pick Up 87 | 17 12 27 13 18 . Fast Attach . | . . . . . . Attach 22 | 8 2 7 3 2 . Detach . | . . . . . . Swap 15 | . 1 7 . 7 . Drop 41 | 2 2 10 11 16 . Fire 96 | 6 7 50 22 1 10 Melee . | . . . . . . Ram . | . . . . . . Kick . | . . . . . . Crush . | . . . . . . Escape Stasis . | . . . . . . Rewire . | . . . . . . Trap . | . . . . . . Miscellaneous . | . . . . . . Route ------- -11/Scrapyard -10/Materials (discovered 2 exits: *Mat / *Min) -9/Materials -8/Materials -7/Factory -7/Waste History --------- Turn | Location | Event 2 | -11/Scrapyard | Met Revision 17 38 | -11/Scrapyard | Identified exit to Materials 38 | -11/Scrapyard | Discovered exit to Materials (range 15) 166 | -11/Scrapyard | Entered Materials 166 | -10/Materials | Evolved 1 slot: Power x1 311 | -10/Materials | Build established: Hacker-Mutant 345 | -10/Materials | Identified exit to Mines 345 | -10/Materials | Discovered exit to Mines (range 11) 509 | -10/Materials | Identified exit to Materials 509 | -10/Materials | Discovered exit to Materials (range 9) 538 | -10/Materials | Entered another Materials area 538 | -9/Materials | Evolved 2 slots: Propulsion x1, Utility x1 798 | -9/Materials | Core integrity fell below 50% 1221 | -9/Materials | Identified exit to Materials 1221 | -9/Materials | Discovered exit to Materials (range 10) 1264 | -9/Materials | Entered another Materials area 1264 | -8/Materials | Evolved 2 slots: Utility x1, Weapon x1 1752 | -8/Materials | Build established: Hacker-Tank 1793 | -8/Materials | Identified exit to Factory 1793 | -8/Materials | Discovered exit to Factory (range 4) 1826 | -8/Materials | Entered Factory 1826 | -7/Factory | Evolved 2 slots: Power x1, Propulsion x1 2309 | -7/Factory | Sucked down chute 2309 | -7/Factory | Entered Waste 2310 | -7/Waste | Met a frightened Derelict 2313 | -7/Waste | Spotted C-40 Crusher 2324 | -7/Waste | EMP discharged 2324 | -7/Waste | Spotted C-40 Crusher 2325 | -7/Waste | Destroyed C-40 Crusher 2333 | -7/Waste | Spotted C-40 Crusher 2341 | -7/Waste | Crushed by Compactor (1 part destroyed, 2 dropped) 2344 | -7/Waste | Crushed by Compactor (1 part destroyed, 1 dropped) 2347 | -7/Waste | Crushed by Compactor (1 part destroyed, 1 dropped) 2350 | -7/Waste | Crushed by Compactor (1 part destroyed, 1 dropped) 2356 | -7/Waste | Crushed by Compactor (1 part destroyed, 1 dropped) 2375 | -7/Waste | Spotted C-40 Crusher 2376 | -7/Waste | Self-destructed Last Messages --------------- Overheating: System interference. Heat Sink temporarily disabled. Wheel crushed. Com. Wheel crushed. Heat Sink crushed. Deuterium Engine broken. Overheating: Short circuit. Heat Sink crushed. Overheating: Arm. Huge Wheel damaged (-119). Overheating: Huge Storage Unit damaged (-402). Overheating: Broken Deuterium Engine damaged (-23). Broken Deuterium Engine crushed. Huge Storage Unit crushed. Adv. ECM Suite crushed. Huge Storage Unit crushed. Imp. Titanium Leg crushed. Adv. Visual Processing Unit crushed. Hvy. Laser crushed. Critical hit (Destroy). Arm. Huge Wheel destroyed. Map ----- +----------------------------------------------------+ | ????????????????????????????????????????????? | | ????????????????????????????????????????????? | | ????????????????????????????????????????????? | | ????????????????????????????????????????????? | | ????????????????????????????????????????????? | | ????????????????????????????????????????????? | | ????????????????????????????????????????????? | | ????????????????????????????????????????????? | | ????????????????????????????????????????????? | | ????????????????????????????????????????????? | | ????????????????????????????????????????????? | | ????????????????????????????????????????????? | | ????????????????????????????????????????????? | | ????????????????????????????????????????????? | | ????????????????????????????????????????????? | | ????????????????????????????????????????????? | | ????????????????????????????????????????????? | | ????????????????????????????????????????????? | | ????????????????????????????????????????????? | | ?????????????############???????????????????? | | ?????????????# #???????????????????? | | ?????????????# #????? #???????????? | | ?????????????# ! #### ####????????? | | ?????????????# *!*[ C ???????? | | ?????????????# !!!!!CC %= C ???????? | | ?????????????# !*@CCCC ???????? | | ?????????????# ==%CC ! ???????? | | ?????????????# **!* #### ##??????????? | | ?????????????# ] #?????? #???????????? | | ?????????????# #???????????????????? | | ?????????????############???????????????????? | | ????????????????????????????????????????????? | | ????????????????????????????????????????????? | | ????????????????????????????????????????????? | | ????????????????????????????????????????????? | | ????????????????????????????????????????????? | | ????????????????????????????????????????????? | | ????????????????????????????????????????????? | | ????????????????????????????????????????????? | | ????????????????????????????????????????????? | | ????????????????????????????????????????????? | | ????????????????????????????????????????????? | | ????????????????????????????????????????????? | | ????????????????????????????????????????????? | | ????????????????????????????????????????????? | | ????????????????????????????????????????????? | | ????????????????????????????????????????????? | | ????????????????????????????????????????????? | | ????????????????????????????????????????????? | | ????????????????????????????????????????????? | +----------------------------------------------------+ Best States ------------- Heat Dissipation 44 Energy Generation 32 Energy Capacity 625 Matter Stores 300 Matter Capacity 300 Sight Range 16 Robot Scan Range 15 Terrain Scan Density 10 Armor Coverage 225 Resistance: KI 35 Resistance: TH 35 Resistance: EX 35 Resistance: EM 35 Resistance: I 35 Resistance: S 35 Resistance: P 35 Power Shielding 33 Propulsion Shielding 33 Evasion (%) 40 Recoil Reduction 2 Offensive Hacking 20 Item Schematics ----------------- None Robot Schematics ------------------ None Fabricated ------------ Nothing Alien Tech Used ----------------- None Achievements -------------- It's Just You Challenges ------------ None Game ------ Seed GrenadeWarlordScrap Manual? 0 Play Time 00:32:37 Cumulative 4.1 hours Start 2024.10.09 @ 22:31:52 End 2024.10.09 @ 23:04:02 Sessions 1 Manual Loads 0 Difficulty Explorer Special Mode None Game No. 4 Rogue 0 Adventurer 0 Explorer 4 Win Type - Total 0 Types 0/0/0/0/0/0/0/0/0 Lore% 3 Gallery% 9 Achievement% 8 Wizard Run 0 Options --------- Layout 0 ASCII 0 Keyboard 0 Movement Mouse Keybinds 0 Fullscreen 1 Font 18/SmallcapsGlow Map View 38x25 Zoom Use 99% Tactical HUD 0 Map Filters NONE Filters NONE Steam 1 RUN: 22ea15f7-bd5f-4f1e-8fa6-7817144b7f80